Workbook

Sheet other
A4: BUDGET FOR VOCATIONAL TRAINING PROJECT FOR 80 DRUG USING STREET YOUTH IN A RESIDENTIAL SET UP
B5: (One Year- 2011-2012)
A7: No. | B7: Heads | C7: Details | D7: Total | E7: Other | F7: Grant
C8: in Rupees | D8: in Rupees | E8: Sources | F8: Requested
A9: 1 | B9: Vocational Training Activities
B10: Equipments & Raw Material | D10: 190000 | E10: 145000 | F10: 45000
B11: Stipend
B12: Carpentry : 15 boys in 2 batches | C12: Rs.400*4months*15 youth | D12: =400*4*15 -> 24000
B13: Welding : 15 boys in 2 batches | C13: Rs.400*4months*15 youth | D13: =400*4*15 -> 24000
B14: Screen printing : 15 boys in 2 batches | C14: Rs.400*4months*15 youth | D14: =400*4*15 -> 24000
B15: Catering : 15 boys in 2 batches | C15: Rs.400*4months*15 youth | D15: =400*4*15 -> 24000
B16: Housekeeping : 15 boys in 2 batches | C16: Rs.400*4months*15 youth | D16: =400*4*15 -> 24000 | E16: 60000 | F16: 60000
B17: Project conveyance | C17: Rs. 2500*12 | D17: =2500*12 -> 30000 | E17: 30000
A18: 2 | B18: Recreation
B19: Events & festival exps. | D19: 30000 | E19: =D19 -> 30000
B20: Camps & Picnics | D20: 15000 | F20: =D20 -> 15000
A21: 3 | B21: Repatriation of the boys | D21: 5000 | E21: 5000
A22: 4 | B22: Maintenance of Youth
B23: Clothing / Footwear | D23: 75000 | E23: 8000 | F23: =D23-E23 -> 67000
B24: Hygiene exps. | C24: Rs. 3,500*12 | D24: =3500*12 -> 42000 | E24: =D24 -> 42000
A25: 5 | B25: Food & Nutrition | D25: 570000 | E25: =200000+100000 -> 300000 | F25: =D25-E25 -> 270000
A26: 6 | B26: Medical & Detox expenses | D26: 35000 | E26: 35000
A27: 7 | B27: Rent | C27: Rs. 80,000* 12 | D27: =80000*12 -> 960000 | E27: =D27 -> 960000
A28: 8 | B28: Utilities (electricity, water bills etc) | C28: Rs. 9,750 * 12 | D28: =9750*12 -> 117000 | E28: 50000 | F28: =D28-E28 -> 67000
A29: 9 | B29: Communication | C29: Rs. 3750 * 12 | D29: =3750*12 -> 45000 | E29: =24000 -> 24000 | F29: =D29-E29 -> 21000
A30: 10 | B30: Repair & Maintenance
B31: Centre /Vehicle / Computer Repair | D31: 125000 | E31: =25000 -> 25000 | F31: =D31-E31 -> 100000
B32: Housekeeping | C32: Rs. 2,000 * 12 | D32: 24000 | E32: =18000 -> 18000 | F32: =D32-E32 -> 6000
A33: 11 | B33: Administrative exps (Proportionate) | D33: 185000 | E33: =D33 -> 185000
B34: (Mediclaim for staff, audit fees, insurance premium, office stationery etc)
A35: 12 | B35: Travelling & Conveyance
B36: Fuel for vehicle | C36: Rs. 3,500 * 12 | D36: =3500*12 -> 42000 | F36: =D36 -> 42000
A37: 13 | B37: Salary / Honorarium
B38: Director (Proportionate) | D38: =120000*12*37% -> 532800 | E38: =D38 -> 532800 | F38: =D38-E38 -> 0
B39: Co-ordinators - 2 | C39: Rs. 15,600 *2 * 12 | D39: =15600*2 *12 -> 374400 | E39: =D39 -> 374400
B40: Social Workers - 2 | C40: Rs. 4,800 * 2 * 12 | D40: =4800*2*12 -> 115200 | E40: =D40 -> 115200
B41: Trainer - 5 | C41: Rs. 5,880 * 5*12 | D41: =5880*5*12 -> 352800 | F41: =D41 -> 352800
B42: Doctor/Medical Staff (Proportionate) | D42: =662400*40% -> 264960 | E42: =D42 -> 264960
B43: Office Staff (Proportionate) | D43: =1375200*40% -> 550080 | E43: =236360+76800+100000 -> 413160 | F43: =D43-E43 -> 136920
A44: 14 | B44: Fringe Benefit(10% of total salary) | D44: =SUM(D38:D43)*10% -> 219024 | E44: 154288 | F44: =D44-E44 -> 64736
A45: 15 | B45: Telephone & conveyance allowance | D45: =(((((4900+10650)+(15550*20%))*12)*40%)+(((12500+(12500*20%))*12))) -> 269568 | E45: =D45/2 -> 134784 | F45: =D45-E45 -> 134784
C46: Total | D46: =SUM(D9:D45) -> 5288832 | E46: =SUM(E9:E45) -> 3906592 | F46: =SUM(F9:F45) -> 1382240

Sheet Sheet1
A1: 11 | B1: Medical staff | C1: Per month
B2: Doctor | C2: 17000
B3: Co-ordinator | C3: 12500
B4: Nurse-2 | C4: 12000
B5: Assistant | C5: 4500 | D5: =SUM(C2:C5)*12*20%+552000 -> 662400 | E5: =D5*18% -> 119232 | F5: =D5*32% -> 211968 | G5: =D5*40% -> 264960 | H5: =D5*10% -> 66240
A6: 12 | B6: Office Staff
B7: Assistant Director | C7: 23500
B8: Accountant-2 | C8: 16000
B9: Store keeper | C9: 6250
B10: Office Assistant | C10: 5000
B11: Driver | C11: 7500
B12: Consultant | C12: 25000
B13: CA | C13: 13250 | D13: =SUM(C7:C13)*12*20%+1158000 -> 1389600 | E13: =D13*18% -> 250128 | F13: =D13*32% -> 444672 | G13: =D13*40% -> 555840 | H13: =D13*10% -> 138960
A14: 13 | B14: Director | C14: 120000 | D14: =C14*12*20%+1440000 -> 1728000 | E14: =D14*18% -> 311040 | F14: =D14*32% -> 552960 | G14: =D14*40% -> 691200 | H14: =D14*10% -> 172800
A15: 14 | B15: Tel & Conveyance allowance | C15: 60117 | D15: =C15*12*9%+721404 -> 786330.36 | E15: =D15*18% -> 141539.4648 | F15: =D15*32% -> 251625.7152 | G15: =D15*40% -> 314532.144 | H15: =D15*10% -> 78633.036
